{"text_format":"1","workbook":"xlsx","n_sheets":4,"sheets":["Arkusz chroniony","Arkusz2","Arkusz pomocniczy","Tabela miesiące"],"not_rendered":{"charts":0,"images":0,"macros":1,"external_links":0,"defined_names":2,"comments":2,"pivot_tables":0},"unopened":[],"bounds":{"document_bytes":16777216,"sheet_cells":100000,"rows_first":2000,"rows_last":500,"rows_between":2000,"halvings":0,"cell_chars":16384,"cell_head_chars":4096},"cells_cut":0,"cells_raw":0,"read":"whole","date_system":"1900"}

{"sheet":"Arkusz chroniony","index":0,"n_rows":58,"n_cols":35,"rows_kept":58,"cut":false,"hidden":false,"merged":[[8,7,8,9],[21,10,21,12],[19,10,19,12],[0,0,0,22],[14,10,14,12],[13,10,13,12],[15,10,15,12],[16,10,16,12],[17,10,17,12],[16,7,16,9],[24,12,24,13],[17,5,17,6],[18,7,18,9],[19,7,19,9],[20,7,20,9],[20,10,20,12],[8,10,8,12],[9,10,9,12],[10,10,10,12],[11,10,11,12],[12,10,12,12],[24,24,24,25],[24,18,24,19],[8,14,21,22],[18,10,18,12],[24,21,24,22],[24,27,24,28],[24,30,24,31],[24,33,24,34],[10,7,10,9],[11,7,11,9],[12,7,12,9],[21,5,21,9],[21,5,21,9],[19,5,19,6],[24,15,24,16],[8,0,8,1],[8,5,8,6],[13,5,13,6],[14,5,14,6],[15,5,15,6],[16,5,16,6],[10,5,10,6],[11,5,11,6],[12,5,12,6],[5,0,5,16],[13,7,13,9],[24,0,24,1],[24,3,24,4],[18,5,18,6],[20,5,20,6],[24,6,24,7],[14,7,14,9],[24,9,24,10],[17,7,17,9],[6,0,6,16],[2,0,2,16],[3,0,3,16],[4,0,4,16],[15,7,15,9],[1,0,1,22],[10,0,14,1],[10,2,14,3],[9,7,9,9],[9,5,9,6]]}
["Obliczenie danych dotyczących zatrudnienia na potrzeby określenia momentu bazowego"]
["Instrukcja:"]
["1. Należy wskazać miesiąc złożenia wniosku o przyznanie pomocy poprzez wybranie z listy rozwijanej,"]
["2. Następnie należy wprowadzać właściwe dane do pól zaznaczonych kolorem żółtym,"]
["3. W przypadku działalności prowadzonej krócej niż dwanaście miesięcy i rozpoczętej nie z pierwszym dniem danego miesiąca, pola dotyczące  dni, w których nie była jeszcze prowadzona działalność powinny być puste (nie mogą zawierać nawet wartości \"0\"),"]
["4. Dla dni wolnych od pracy należy przyjąć stan z poprzedzającego dnia roboczego, o ile w tym dniu nie została rozwiązana umowa z pracownikiem,"]
["5. W dniach, w którzych przedsiębiorca nie zatrudniał pracowników należy wpisać \"0\" (nie należy tych pól pozostawiać pustych)."]
[]
["Miesiąc złożenia WoPP)",null,null,9,null,"Kolejne miesiące poprzedzające miesiąc złożenia WoPP",null,"Miesiąc",null,null,"Średni poziom zatrudnienia w miesiącu",null,null,null,"Do stanu zatrudnienia nie należy wliczać pracowników przebywających na urlopie: \n• bezpłatnym (kod świadczenia/przerwy 111);\n• macierzyńskim (kod świadczenia/przerwy 311; kod tytułu ubezpieczenia 12 40);\n• bezpłatnym w celu sprawowania opieki nad dzieckiem (np. urlop wychowawczy - kod świadczenia/przerwy 121,122; kod tytułu ubezpieczenia 12 11);\n• bezpłatnym udzielonym pracownikom powołanym do pełnienia określonych funkcji z wyboru \noraz\n• stażystów;\n• osób zatrudnionych w celu przygotowania zawodowego;\n• osób wykonujących pracę na podstawie innej niż umowa o pracę (np. umowy zlecenia lub umowy o dzieło);\n• osób tzw. samozatrudnionych, czyli osób prowadzących działalność gospodarczą oraz osób współpracujących;\n• osób skazanych zatrudnionych na podstawie skierowania do pracy wydanego dyrektora zakładu karnego  (a nie umowy o pracę )."]
[null,null,null,null,null,{"$f":"1","v":1},null,{"$f":"VLOOKUP($D$9+1,'Tabela miesiące'!A2:B37,2,0)","v":"Marzec_2013"},null,null,{"$f":"IF(B58>=0,B58,\"\")","v":0.99999999989999999}]
["Liczba miesięcy                  (w przypadku kiedy podmiot działa krócej niż 12 miesięcy należy wpisać liczbę miesięcy prowadzenia dzialalności)",null,12,null,null,{"$f":"1+F10","v":2},null,{"$f":"VLOOKUP($D$9+2,'Tabela miesiące'!A3:B38,2,0)","v":"Luty_2013"},null,null,{"$f":"IF(E58>=0,E58,\"\")","v":0}]
[null,null,null,null,null,{"$f":"F11+1","v":3},null,{"$f":"VLOOKUP($D$9+3,'Tabela miesiące'!A4:B39,2,0)","v":"Styczeń_2013"},null,null,{"$f":"IF(H58>=0,H58,\"\")","v":0}]
[null,null,null,null,null,{"$f":"F12+1","v":4},null,{"$f":"VLOOKUP($D$9+4,'Tabela miesiące'!A5:B40,2,0)","v":"Grudzień_2012"},null,null,{"$f":"IF(K58>=0,K58,\"\")","v":0}]
[null,null,null,null,null,5,null,{"$f":"VLOOKUP($D$9+5,'Tabela miesiące'!A6:B41,2,0)","v":"Listopad_2012"},null,null,{"$f":"IF(N58>=0,N58,\"\")","v":0}]
[null,null,null,null,null,6,null,{"$f":"VLOOKUP($D$9+6,'Tabela miesiące'!A7:B42,2,0)","v":"Październik_2012"},null,null,{"$f":"IF(Q58>=0,Q58,\"\")","v":0}]
[null,null,null,null,null,7,null,{"$f":"VLOOKUP($D$9+7,'Tabela miesiące'!A8:B43,2,0)","v":"Wrzesień_2012"},null,null,{"$f":"IF(T58>=0,T58,\"\")","v":0}]
[null,null,null,null,null,8,null,{"$f":"VLOOKUP($D$9+8,'Tabela miesiące'!A9:B44,2,0)","v":"Sierpień_2012"},null,null,{"$f":"IF(W58>=0,W58,\"\")","v":0}]
[null,null,null,null,null,9,null,{"$f":"VLOOKUP($D$9+9,'Tabela miesiące'!A10:B45,2,0)","v":"Lipiec_2012"},null,null,{"$f":"IF(Z58>=0,Z58,\"\")","v":0}]
[null,null,null,null,null,10,null,{"$f":"VLOOKUP($D$9+10,'Tabela miesiące'!A11:B46,2,0)","v":"Czerwiec_2012"},null,null,{"$f":"IF(AC58>=0,AC58,\"\")","v":0}]
[null,null,null,null,null,11,null,{"$f":"VLOOKUP($D$9+11,'Tabela miesiące'!A12:B47,2,0)","v":"Maj_2012"},null,null,{"$f":"IF(AF58>=0,AF58,\"\")","v":0}]
[null,null,null,null,null,12,null,{"$f":"VLOOKUP($D$9+12,'Tabela miesiące'!A13:B48,2,0)","v":"Kwiecień_2012"},null,null,{"$f":"IF(AI58>=0,AI58,\"\")","v":0}]
[null,null,null,null,null,"Średnia z okresu 12 miesięcy poprzedzajacych miesiąc złożenia wniosku",null,null,null,null,{"$f":"SUM(K10:M21)/C11","v":8.3333333324999995E-2}]
[]
[]
[{"$f":"H10","v":"Marzec_2013"},null,null,{"$f":"H11","v":"Luty_2013"},null,null,{"$f":"H12","v":"Styczeń_2013"},null,null,{"$f":"H13","v":"Grudzień_2012"},null,null,{"$f":"H14","v":"Listopad_2012"},null,null,{"$f":"H15","v":"Październik_2012"},null,null,{"$f":"H16","v":"Wrzesień_2012"},null,null,{"$f":"H17","v":"Sierpień_2012"},null,null,{"$f":"H18","v":"Lipiec_2012"},null,null,{"$f":"H19","v":"Czerwiec_2012"},null,null,{"$f":"H20","v":"Maj_2012"},null,null,{"$f":"H21","v":"Kwiecień_2012"}]
["Dni w miesiącu","Liczba osób pracujących w poszczególnych dniach miesiąca",null,"Dni w miesiącu","Liczba osób pracujących w poszczególnych dniach miesiąca",null,"Dni w miesiącu","Liczba osób pracujących w poszczególnych dniach miesiąca",null,"Dni w miesiącu","Liczba osób pracujących w poszczególnych dniach miesiąca",null,"Dni w miesiącu","Liczba osób pracujących w poszczególnych dniach miesiąca",null,"Dni w miesiącu","Liczba osób pracujących w poszczególnych dniach miesiąca",null,"Dni w miesiącu","Liczba osób pracujących w poszczególnych dniach miesiąca",null,"Dni w miesiącu","Liczba osób pracujących w poszczególnych dniach miesiąca",null,"Dni w miesiącu","Liczba osób pracujących w poszczególnych dniach miesiąca",null,"Dni w miesiącu","Liczba osób pracujących w poszczególnych dniach miesiąca",null,"Dni w miesiącu","Liczba osób pracujących w poszczególnych dniach miesiąca",null,"Dni w miesiącu","Liczba osób pracujących w poszczególnych dniach miesiąca"]
[{"$f":"IF('Arkusz pomocniczy'!A22<='Arkusz pomocniczy'!B$54,'Arkusz pomocniczy'!A22,\" \")","v":1},1,null,{"$f":"IF('Arkusz pomocniczy'!D22<='Arkusz pomocniczy'!E$54,'Arkusz pomocniczy'!D22,\" \")","v":1},null,null,{"$f":"IF('Arkusz pomocniczy'!G22<='Arkusz pomocniczy'!H$54,'Arkusz pomocniczy'!G22,\" \")","v":1},null,null,{"$f":"IF('Arkusz pomocniczy'!J22<='Arkusz pomocniczy'!K$54,'Arkusz pomocniczy'!J22,\" \")","v":1},null,null,{"$f":"IF('Arkusz pomocniczy'!M22<='Arkusz pomocniczy'!N$54,'Arkusz pomocniczy'!M22,\" \")","v":1},null,null,{"$f":"IF('Arkusz pomocniczy'!P22<='Arkusz pomocniczy'!Q$54,'Arkusz pomocniczy'!P22,\" \")","v":1},null,null,{"$f":"IF('Arkusz pomocniczy'!S22<='Arkusz pomocniczy'!T$54,'Arkusz pomocniczy'!S22,\" \")","v":1},null,null,{"$f":"IF('Arkusz pomocniczy'!V22<='Arkusz pomocniczy'!W$54,'Arkusz pomocniczy'!V22,\" \")","v":1},null,null,{"$f":"IF('Arkusz pomocniczy'!Y22<='Arkusz pomocniczy'!Z$54,'Arkusz pomocniczy'!Y22,\" \")","v":1},null,null,{"$f":"IF('Arkusz pomocniczy'!AB22<='Arkusz pomocniczy'!AC$54,'Arkusz pomocniczy'!AB22,\" \")","v":1},null,null,{"$f":"IF('Arkusz pomocniczy'!AE22<='Arkusz pomocniczy'!AF$54,'Arkusz pomocniczy'!AE22,\" \")","v":1},null,null,{"$f":"IF('Arkusz pomocniczy'!AH22<='Arkusz pomocniczy'!AI$54,'Arkusz pomocniczy'!AH22,\" \")","v":1}]
[{"$f":"IF('Arkusz pomocniczy'!A23<='Arkusz pomocniczy'!B$54,'Arkusz pomocniczy'!A23,\" \")","v":2},null,null,{"$f":"IF('Arkusz pomocniczy'!D23<='Arkusz pomocniczy'!E$54,'Arkusz pomocniczy'!D23,\" \")","v":2},null,null,{"$f":"IF('Arkusz pomocniczy'!G23<='Arkusz pomocniczy'!H$54,'Arkusz pomocniczy'!G23,\" \")","v":2},null,null,{"$f":"IF('Arkusz pomocniczy'!J23<='Arkusz pomocniczy'!K$54,'Arkusz pomocniczy'!J23,\" \")","v":2},null,null,{"$f":"IF('Arkusz pomocniczy'!M23<='Arkusz pomocniczy'!N$54,'Arkusz pomocniczy'!M23,\" \")","v":2},null,null,{"$f":"IF('Arkusz pomocniczy'!P23<='Arkusz pomocniczy'!Q$54,'Arkusz pomocniczy'!P23,\" \")","v":2},null,null,{"$f":"IF('Arkusz pomocniczy'!S23<='Arkusz pomocniczy'!T$54,'Arkusz pomocniczy'!S23,\" \")","v":2},null,null,{"$f":"IF('Arkusz pomocniczy'!V23<='Arkusz pomocniczy'!W$54,'Arkusz pomocniczy'!V23,\" \")","v":2},null,null,{"$f":"IF('Arkusz pomocniczy'!Y23<='Arkusz pomocniczy'!Z$54,'Arkusz pomocniczy'!Y23,\" \")","v":2},null,null,{"$f":"IF('Arkusz pomocniczy'!AB23<='Arkusz pomocniczy'!AC$54,'Arkusz pomocniczy'!AB23,\" \")","v":2},null,null,{"$f":"IF('Arkusz pomocniczy'!AE23<='Arkusz pomocniczy'!AF$54,'Arkusz pomocniczy'!AE23,\" \")","v":2},null,null,{"$f":"IF('Arkusz pomocniczy'!AH23<='Arkusz pomocniczy'!AI$54,'Arkusz pomocniczy'!AH23,\" \")","v":2}]
[{"$f":"IF('Arkusz pomocniczy'!A24<='Arkusz pomocniczy'!B$54,'Arkusz pomocniczy'!A24,\" \")","v":3},null,null,{"$f":"IF('Arkusz pomocniczy'!D24<='Arkusz pomocniczy'!E$54,'Arkusz pomocniczy'!D24,\" \")","v":3},null,null,{"$f":"IF('Arkusz pomocniczy'!G24<='Arkusz pomocniczy'!H$54,'Arkusz pomocniczy'!G24,\" \")","v":3},null,null,{"$f":"IF('Arkusz pomocniczy'!J24<='Arkusz pomocniczy'!K$54,'Arkusz pomocniczy'!J24,\" \")","v":3},null,null,{"$f":"IF('Arkusz pomocniczy'!M24<='Arkusz pomocniczy'!N$54,'Arkusz pomocniczy'!M24,\" \")","v":3},null,null,{"$f":"IF('Arkusz pomocniczy'!P24<='Arkusz pomocniczy'!Q$54,'Arkusz pomocniczy'!P24,\" \")","v":3},null,null,{"$f":"IF('Arkusz pomocniczy'!S24<='Arkusz pomocniczy'!T$54,'Arkusz pomocniczy'!S24,\" \")","v":3},null,null,{"$f":"IF('Arkusz pomocniczy'!V24<='Arkusz pomocniczy'!W$54,'Arkusz pomocniczy'!V24,\" \")","v":3},null,null,{"$f":"IF('Arkusz pomocniczy'!Y24<='Arkusz pomocniczy'!Z$54,'Arkusz pomocniczy'!Y24,\" \")","v":3},null,null,{"$f":"IF('Arkusz pomocniczy'!AB24<='Arkusz pomocniczy'!AC$54,'Arkusz pomocniczy'!AB24,\" \")","v":3},null,null,{"$f":"IF('Arkusz pomocniczy'!AE24<='Arkusz pomocniczy'!AF$54,'Arkusz pomocniczy'!AE24,\" \")","v":3},null,null,{"$f":"IF('Arkusz pomocniczy'!AH24<='Arkusz pomocniczy'!AI$54,'Arkusz pomocniczy'!AH24,\" \")","v":3}]
[{"$f":"IF('Arkusz pomocniczy'!A25<='Arkusz pomocniczy'!B$54,'Arkusz pomocniczy'!A25,\" \")","v":4},null,null,{"$f":"IF('Arkusz pomocniczy'!D25<='Arkusz pomocniczy'!E$54,'Arkusz pomocniczy'!D25,\" \")","v":4},null,null,{"$f":"IF('Arkusz pomocniczy'!G25<='Arkusz pomocniczy'!H$54,'Arkusz pomocniczy'!G25,\" \")","v":4},null,null,{"$f":"IF('Arkusz pomocniczy'!J25<='Arkusz pomocniczy'!K$54,'Arkusz pomocniczy'!J25,\" \")","v":4},null,null,{"$f":"IF('Arkusz pomocniczy'!M25<='Arkusz pomocniczy'!N$54,'Arkusz pomocniczy'!M25,\" \")","v":4},null,null,{"$f":"IF('Arkusz pomocniczy'!P25<='Arkusz pomocniczy'!Q$54,'Arkusz pomocniczy'!P25,\" \")","v":4},null,null,{"$f":"IF('Arkusz pomocniczy'!S25<='Arkusz pomocniczy'!T$54,'Arkusz pomocniczy'!S25,\" \")","v":4},null,null,{"$f":"IF('Arkusz pomocniczy'!V25<='Arkusz pomocniczy'!W$54,'Arkusz pomocniczy'!V25,\" \")","v":4},null,null,{"$f":"IF('Arkusz pomocniczy'!Y25<='Arkusz pomocniczy'!Z$54,'Arkusz pomocniczy'!Y25,\" \")","v":4},null,null,{"$f":"IF('Arkusz pomocniczy'!AB25<='Arkusz pomocniczy'!AC$54,'Arkusz pomocniczy'!AB25,\" \")","v":4},null,null,{"$f":"IF('Arkusz pomocniczy'!AE25<='Arkusz pomocniczy'!AF$54,'Arkusz pomocniczy'!AE25,\" \")","v":4},null,null,{"$f":"IF('Arkusz pomocniczy'!AH25<='Arkusz pomocniczy'!AI$54,'Arkusz pomocniczy'!AH25,\" \")","v":4}]
[{"$f":"IF('Arkusz pomocniczy'!A26<='Arkusz pomocniczy'!B$54,'Arkusz pomocniczy'!A26,\" \")","v":5},null,null,{"$f":"IF('Arkusz pomocniczy'!D26<='Arkusz pomocniczy'!E$54,'Arkusz pomocniczy'!D26,\" \")","v":5},null,null,{"$f":"IF('Arkusz pomocniczy'!G26<='Arkusz pomocniczy'!H$54,'Arkusz pomocniczy'!G26,\" \")","v":5},null,null,{"$f":"IF('Arkusz pomocniczy'!J26<='Arkusz pomocniczy'!K$54,'Arkusz pomocniczy'!J26,\" \")","v":5},null,null,{"$f":"IF('Arkusz pomocniczy'!M26<='Arkusz pomocniczy'!N$54,'Arkusz pomocniczy'!M26,\" \")","v":5},null,null,{"$f":"IF('Arkusz pomocniczy'!P26<='Arkusz pomocniczy'!Q$54,'Arkusz pomocniczy'!P26,\" \")","v":5},null,null,{"$f":"IF('Arkusz pomocniczy'!S26<='Arkusz pomocniczy'!T$54,'Arkusz pomocniczy'!S26,\" \")","v":5},null,null,{"$f":"IF('Arkusz pomocniczy'!V26<='Arkusz pomocniczy'!W$54,'Arkusz pomocniczy'!V26,\" \")","v":5},null,null,{"$f":"IF('Arkusz pomocniczy'!Y26<='Arkusz pomocniczy'!Z$54,'Arkusz pomocniczy'!Y26,\" \")","v":5},null,null,{"$f":"IF('Arkusz pomocniczy'!AB26<='Arkusz pomocniczy'!AC$54,'Arkusz pomocniczy'!AB26,\" \")","v":5},null,null,{"$f":"IF('Arkusz pomocniczy'!AE26<='Arkusz pomocniczy'!AF$54,'Arkusz pomocniczy'!AE26,\" \")","v":5},null,null,{"$f":"IF('Arkusz pomocniczy'!AH26<='Arkusz pomocniczy'!AI$54,'Arkusz pomocniczy'!AH26,\" \")","v":5}]
[{"$f":"IF('Arkusz pomocniczy'!A27<='Arkusz pomocniczy'!B$54,'Arkusz pomocniczy'!A27,\" \")","v":6},null,null,{"$f":"IF('Arkusz pomocniczy'!D27<='Arkusz pomocniczy'!E$54,'Arkusz pomocniczy'!D27,\" \")","v":6},null,null,{"$f":"IF('Arkusz pomocniczy'!G27<='Arkusz pomocniczy'!H$54,'Arkusz pomocniczy'!G27,\" \")","v":6},null,null,{"$f":"IF('Arkusz pomocniczy'!J27<='Arkusz pomocniczy'!K$54,'Arkusz pomocniczy'!J27,\" \")","v":6},null,null,{"$f":"IF('Arkusz pomocniczy'!M27<='Arkusz pomocniczy'!N$54,'Arkusz pomocniczy'!M27,\" \")","v":6},null,null,{"$f":"IF('Arkusz pomocniczy'!P27<='Arkusz pomocniczy'!Q$54,'Arkusz pomocniczy'!P27,\" \")","v":6},null,null,{"$f":"IF('Arkusz pomocniczy'!S27<='Arkusz pomocniczy'!T$54,'Arkusz pomocniczy'!S27,\" \")","v":6},null,null,{"$f":"IF('Arkusz pomocniczy'!V27<='Arkusz pomocniczy'!W$54,'Arkusz pomocniczy'!V27,\" \")","v":6},null,null,{"$f":"IF('Arkusz pomocniczy'!Y27<='Arkusz pomocniczy'!Z$54,'Arkusz pomocniczy'!Y27,\" \")","v":6},null,null,{"$f":"IF('Arkusz pomocniczy'!AB27<='Arkusz pomocniczy'!AC$54,'Arkusz pomocniczy'!AB27,\" \")","v":6},null,null,{"$f":"IF('Arkusz pomocniczy'!AE27<='Arkusz pomocniczy'!AF$54,'Arkusz pomocniczy'!AE27,\" \")","v":6},null,null,{"$f":"IF('Arkusz pomocniczy'!AH27<='Arkusz pomocniczy'!AI$54,'Arkusz pomocniczy'!AH27,\" \")","v":6}]
[{"$f":"IF('Arkusz pomocniczy'!A28<='Arkusz pomocniczy'!B$54,'Arkusz pomocniczy'!A28,\" \")","v":7},null,null,{"$f":"IF('Arkusz pomocniczy'!D28<='Arkusz pomocniczy'!E$54,'Arkusz pomocniczy'!D28,\" \")","v":7},null,null,{"$f":"IF('Arkusz pomocniczy'!G28<='Arkusz pomocniczy'!H$54,'Arkusz pomocniczy'!G28,\" \")","v":7},null,null,{"$f":"IF('Arkusz pomocniczy'!J28<='Arkusz pomocniczy'!K$54,'Arkusz pomocniczy'!J28,\" \")","v":7}," ",null,{"$f":"IF('Arkusz pomocniczy'!M28<='Arkusz pomocniczy'!N$54,'Arkusz pomocniczy'!M28,\" \")","v":7},null,null,{"$f":"IF('Arkusz pomocniczy'!P28<='Arkusz pomocniczy'!Q$54,'Arkusz pomocniczy'!P28,\" \")","v":7},null,null,{"$f":"IF('Arkusz pomocniczy'!S28<='Arkusz pomocniczy'!T$54,'Arkusz pomocniczy'!S28,\" \")","v":7},null,null,{"$f":"IF('Arkusz pomocniczy'!V28<='Arkusz pomocniczy'!W$54,'Arkusz pomocniczy'!V28,\" \")","v":7},null,null,{"$f":"IF('Arkusz pomocniczy'!Y28<='Arkusz pomocniczy'!Z$54,'Arkusz pomocniczy'!Y28,\" \")","v":7},null,null,{"$f":"IF('Arkusz pomocniczy'!AB28<='Arkusz pomocniczy'!AC$54,'Arkusz pomocniczy'!AB28,\" \")","v":7},null,null,{"$f":"IF('Arkusz pomocniczy'!AE28<='Arkusz pomocniczy'!AF$54,'Arkusz pomocniczy'!AE28,\" \")","v":7},null,null,{"$f":"IF('Arkusz pomocniczy'!AH28<='Arkusz pomocniczy'!AI$54,'Arkusz pomocniczy'!AH28,\" \")","v":7}]
[{"$f":"IF('Arkusz pomocniczy'!A29<='Arkusz pomocniczy'!B$54,'Arkusz pomocniczy'!A29,\" \")","v":8},null,null,{"$f":"IF('Arkusz pomocniczy'!D29<='Arkusz pomocniczy'!E$54,'Arkusz pomocniczy'!D29,\" \")","v":8},null,null,{"$f":"IF('Arkusz pomocniczy'!G29<='Arkusz pomocniczy'!H$54,'Arkusz pomocniczy'!G29,\" \")","v":8},null,null,{"$f":"IF('Arkusz pomocniczy'!J29<='Arkusz pomocniczy'!K$54,'Arkusz pomocniczy'!J29,\" \")","v":8},null,null,{"$f":"IF('Arkusz pomocniczy'!M29<='Arkusz pomocniczy'!N$54,'Arkusz pomocniczy'!M29,\" \")","v":8},null,null,{"$f":"IF('Arkusz pomocniczy'!P29<='Arkusz pomocniczy'!Q$54,'Arkusz pomocniczy'!P29,\" \")","v":8},null,null,{"$f":"IF('Arkusz pomocniczy'!S29<='Arkusz pomocniczy'!T$54,'Arkusz pomocniczy'!S29,\" \")","v":8},null,null,{"$f":"IF('Arkusz pomocniczy'!V29<='Arkusz pomocniczy'!W$54,'Arkusz pomocniczy'!V29,\" \")","v":8},null,null,{"$f":"IF('Arkusz pomocniczy'!Y29<='Arkusz pomocniczy'!Z$54,'Arkusz pomocniczy'!Y29,\" \")","v":8},null,null,{"$f":"IF('Arkusz pomocniczy'!AB29<='Arkusz pomocniczy'!AC$54,'Arkusz pomocniczy'!AB29,\" \")","v":8},null,null,{"$f":"IF('Arkusz pomocniczy'!AE29<='Arkusz pomocniczy'!AF$54,'Arkusz pomocniczy'!AE29,\" \")","v":8},null,null,{"$f":"IF('Arkusz pomocniczy'!AH29<='Arkusz pomocniczy'!AI$54,'Arkusz pomocniczy'!AH29,\" \")","v":8}]
[{"$f":"IF('Arkusz pomocniczy'!A30<='Arkusz pomocniczy'!B$54,'Arkusz pomocniczy'!A30,\" \")","v":9},null,null,{"$f":"IF('Arkusz pomocniczy'!D30<='Arkusz pomocniczy'!E$54,'Arkusz pomocniczy'!D30,\" \")","v":9},null,null,{"$f":"IF('Arkusz pomocniczy'!G30<='Arkusz pomocniczy'!H$54,'Arkusz pomocniczy'!G30,\" \")","v":9},null,null,{"$f":"IF('Arkusz pomocniczy'!J30<='Arkusz pomocniczy'!K$54,'Arkusz pomocniczy'!J30,\" \")","v":9},null,null,{"$f":"IF('Arkusz pomocniczy'!M30<='Arkusz pomocniczy'!N$54,'Arkusz pomocniczy'!M30,\" \")","v":9},null,null,{"$f":"IF('Arkusz pomocniczy'!P30<='Arkusz pomocniczy'!Q$54,'Arkusz pomocniczy'!P30,\" \")","v":9},null,null,{"$f":"IF('Arkusz pomocniczy'!S30<='Arkusz pomocniczy'!T$54,'Arkusz pomocniczy'!S30,\" \")","v":9},null,null,{"$f":"IF('Arkusz pomocniczy'!V30<='Arkusz pomocniczy'!W$54,'Arkusz pomocniczy'!V30,\" \")","v":9},null,null,{"$f":"IF('Arkusz pomocniczy'!Y30<='Arkusz pomocniczy'!Z$54,'Arkusz pomocniczy'!Y30,\" \")","v":9},null,null,{"$f":"IF('Arkusz pomocniczy'!AB30<='Arkusz pomocniczy'!AC$54,'Arkusz pomocniczy'!AB30,\" \")","v":9},null,null,{"$f":"IF('Arkusz pomocniczy'!AE30<='Arkusz pomocniczy'!AF$54,'Arkusz pomocniczy'!AE30,\" \")","v":9},null,null,{"$f":"IF('Arkusz pomocniczy'!AH30<='Arkusz pomocniczy'!AI$54,'Arkusz pomocniczy'!AH30,\" \")","v":9}]
[{"$f":"IF('Arkusz pomocniczy'!A31<='Arkusz pomocniczy'!B$54,'Arkusz pomocniczy'!A31,\" \")","v":10},null,null,{"$f":"IF('Arkusz pomocniczy'!D31<='Arkusz pomocniczy'!E$54,'Arkusz pomocniczy'!D31,\" \")","v":10},null,null,{"$f":"IF('Arkusz pomocniczy'!G31<='Arkusz pomocniczy'!H$54,'Arkusz pomocniczy'!G31,\" \")","v":10}," ",null,{"$f":"IF('Arkusz pomocniczy'!J31<='Arkusz pomocniczy'!K$54,'Arkusz pomocniczy'!J31,\" \")","v":10},null,null,{"$f":"IF('Arkusz pomocniczy'!M31<='Arkusz pomocniczy'!N$54,'Arkusz pomocniczy'!M31,\" \")","v":10},null,null,{"$f":"IF('Arkusz pomocniczy'!P31<='Arkusz pomocniczy'!Q$54,'Arkusz pomocniczy'!P31,\" \")","v":10},null,null,{"$f":"IF('Arkusz pomocniczy'!S31<='Arkusz pomocniczy'!T$54,'Arkusz pomocniczy'!S31,\" \")","v":10},null,null,{"$f":"IF('Arkusz pomocniczy'!V31<='Arkusz pomocniczy'!W$54,'Arkusz pomocniczy'!V31,\" \")","v":10},null,null,{"$f":"IF('Arkusz pomocniczy'!Y31<='Arkusz pomocniczy'!Z$54,'Arkusz pomocniczy'!Y31,\" \")","v":10},null,null,{"$f":"IF('Arkusz pomocniczy'!AB31<='Arkusz pomocniczy'!AC$54,'Arkusz pomocniczy'!AB31,\" \")","v":10},null,null,{"$f":"IF('Arkusz pomocniczy'!AE31<='Arkusz pomocniczy'!AF$54,'Arkusz pomocniczy'!AE31,\" \")","v":10},null,null,{"$f":"IF('Arkusz pomocniczy'!AH31<='Arkusz pomocniczy'!AI$54,'Arkusz pomocniczy'!AH31,\" \")","v":10}]
[{"$f":"IF('Arkusz pomocniczy'!A32<='Arkusz pomocniczy'!B$54,'Arkusz pomocniczy'!A32,\" \")","v":11},null,null,{"$f":"IF('Arkusz pomocniczy'!D32<='Arkusz pomocniczy'!E$54,'Arkusz pomocniczy'!D32,\" \")","v":11},null,null,{"$f":"IF('Arkusz pomocniczy'!G32<='Arkusz pomocniczy'!H$54,'Arkusz pomocniczy'!G32,\" \")","v":11},null,null,{"$f":"IF('Arkusz pomocniczy'!J32<='Arkusz pomocniczy'!K$54,'Arkusz pomocniczy'!J32,\" \")","v":11},null,null,{"$f":"IF('Arkusz pomocniczy'!M32<='Arkusz pomocniczy'!N$54,'Arkusz pomocniczy'!M32,\" \")","v":11},null,null,{"$f":"IF('Arkusz pomocniczy'!P32<='Arkusz pomocniczy'!Q$54,'Arkusz pomocniczy'!P32,\" \")","v":11},null,null,{"$f":"IF('Arkusz pomocniczy'!S32<='Arkusz pomocniczy'!T$54,'Arkusz pomocniczy'!S32,\" \")","v":11},null,null,{"$f":"IF('Arkusz pomocniczy'!V32<='Arkusz pomocniczy'!W$54,'Arkusz pomocniczy'!V32,\" \")","v":11},null,null,{"$f":"IF('Arkusz pomocniczy'!Y32<='Arkusz pomocniczy'!Z$54,'Arkusz pomocniczy'!Y32,\" \")","v":11},null,null,{"$f":"IF('Arkusz pomocniczy'!AB32<='Arkusz pomocniczy'!AC$54,'Arkusz pomocniczy'!AB32,\" \")","v":11},null,null,{"$f":"IF('Arkusz pomocniczy'!AE32<='Arkusz pomocniczy'!AF$54,'Arkusz pomocniczy'!AE32,\" \")","v":11},null,null,{"$f":"IF('Arkusz pomocniczy'!AH32<='Arkusz pomocniczy'!AI$54,'Arkusz pomocniczy'!AH32,\" \")","v":11}]
[{"$f":"IF('Arkusz pomocniczy'!A33<='Arkusz pomocniczy'!B$54,'Arkusz pomocniczy'!A33,\" \")","v":12},null,null,{"$f":"IF('Arkusz pomocniczy'!D33<='Arkusz pomocniczy'!E$54,'Arkusz pomocniczy'!D33,\" \")","v":12},null,null,{"$f":"IF('Arkusz pomocniczy'!G33<='Arkusz pomocniczy'!H$54,'Arkusz pomocniczy'!G33,\" \")","v":12},null,null,{"$f":"IF('Arkusz pomocniczy'!J33<='Arkusz pomocniczy'!K$54,'Arkusz pomocniczy'!J33,\" \")","v":12},null,null,{"$f":"IF('Arkusz pomocniczy'!M33<='Arkusz pomocniczy'!N$54,'Arkusz pomocniczy'!M33,\" \")","v":12},null,null,{"$f":"IF('Arkusz pomocniczy'!P33<='Arkusz pomocniczy'!Q$54,'Arkusz pomocniczy'!P33,\" \")","v":12},null,null,{"$f":"IF('Arkusz pomocniczy'!S33<='Arkusz pomocniczy'!T$54,'Arkusz pomocniczy'!S33,\" \")","v":12},null,null,{"$f":"IF('Arkusz pomocniczy'!V33<='Arkusz pomocniczy'!W$54,'Arkusz pomocniczy'!V33,\" \")","v":12},null,null,{"$f":"IF('Arkusz pomocniczy'!Y33<='Arkusz pomocniczy'!Z$54,'Arkusz pomocniczy'!Y33,\" \")","v":12},null,null,{"$f":"IF('Arkusz pomocniczy'!AB33<='Arkusz pomocniczy'!AC$54,'Arkusz pomocniczy'!AB33,\" \")","v":12},null,null,{"$f":"IF('Arkusz pomocniczy'!AE33<='Arkusz pomocniczy'!AF$54,'Arkusz pomocniczy'!AE33,\" \")","v":12},null,null,{"$f":"IF('Arkusz pomocniczy'!AH33<='Arkusz pomocniczy'!AI$54,'Arkusz pomocniczy'!AH33,\" \")","v":12}]
[{"$f":"IF('Arkusz pomocniczy'!A34<='Arkusz pomocniczy'!B$54,'Arkusz pomocniczy'!A34,\" \")","v":13},null,null,{"$f":"IF('Arkusz pomocniczy'!D34<='Arkusz pomocniczy'!E$54,'Arkusz pomocniczy'!D34,\" \")","v":13},null,null,{"$f":"IF('Arkusz pomocniczy'!G34<='Arkusz pomocniczy'!H$54,'Arkusz pomocniczy'!G34,\" \")","v":13},null,null,{"$f":"IF('Arkusz pomocniczy'!J34<='Arkusz pomocniczy'!K$54,'Arkusz pomocniczy'!J34,\" \")","v":13},null,null,{"$f":"IF('Arkusz pomocniczy'!M34<='Arkusz pomocniczy'!N$54,'Arkusz pomocniczy'!M34,\" \")","v":13},null,null,{"$f":"IF('Arkusz pomocniczy'!P34<='Arkusz pomocniczy'!Q$54,'Arkusz pomocniczy'!P34,\" \")","v":13},null,null,{"$f":"IF('Arkusz pomocniczy'!S34<='Arkusz pomocniczy'!T$54,'Arkusz pomocniczy'!S34,\" \")","v":13},null,null,{"$f":"IF('Arkusz pomocniczy'!V34<='Arkusz pomocniczy'!W$54,'Arkusz pomocniczy'!V34,\" \")","v":13},null,null,{"$f":"IF('Arkusz pomocniczy'!Y34<='Arkusz pomocniczy'!Z$54,'Arkusz pomocniczy'!Y34,\" \")","v":13},null,null,{"$f":"IF('Arkusz pomocniczy'!AB34<='Arkusz pomocniczy'!AC$54,'Arkusz pomocniczy'!AB34,\" \")","v":13},null,null,{"$f":"IF('Arkusz pomocniczy'!AE34<='Arkusz pomocniczy'!AF$54,'Arkusz pomocniczy'!AE34,\" \")","v":13},null,null,{"$f":"IF('Arkusz pomocniczy'!AH34<='Arkusz pomocniczy'!AI$54,'Arkusz pomocniczy'!AH34,\" \")","v":13}]
[{"$f":"IF('Arkusz pomocniczy'!A35<='Arkusz pomocniczy'!B$54,'Arkusz pomocniczy'!A35,\" \")","v":14},null,null,{"$f":"IF('Arkusz pomocniczy'!D35<='Arkusz pomocniczy'!E$54,'Arkusz pomocniczy'!D35,\" \")","v":14},null,null,{"$f":"IF('Arkusz pomocniczy'!G35<='Arkusz pomocniczy'!H$54,'Arkusz pomocniczy'!G35,\" \")","v":14},null,null,{"$f":"IF('Arkusz pomocniczy'!J35<='Arkusz pomocniczy'!K$54,'Arkusz pomocniczy'!J35,\" \")","v":14},null,null,{"$f":"IF('Arkusz pomocniczy'!M35<='Arkusz pomocniczy'!N$54,'Arkusz pomocniczy'!M35,\" \")","v":14},null,null,{"$f":"IF('Arkusz pomocniczy'!P35<='Arkusz pomocniczy'!Q$54,'Arkusz pomocniczy'!P35,\" \")","v":14},null,null,{"$f":"IF('Arkusz pomocniczy'!S35<='Arkusz pomocniczy'!T$54,'Arkusz pomocniczy'!S35,\" \")","v":14},null,null,{"$f":"IF('Arkusz pomocniczy'!V35<='Arkusz pomocniczy'!W$54,'Arkusz pomocniczy'!V35,\" \")","v":14},null,null,{"$f":"IF('Arkusz pomocniczy'!Y35<='Arkusz pomocniczy'!Z$54,'Arkusz pomocniczy'!Y35,\" \")","v":14},null,null,{"$f":"IF('Arkusz pomocniczy'!AB35<='Arkusz pomocniczy'!AC$54,'Arkusz pomocniczy'!AB35,\" \")","v":14},null,null,{"$f":"IF('Arkusz pomocniczy'!AE35<='Arkusz pomocniczy'!AF$54,'Arkusz pomocniczy'!AE35,\" \")","v":14},null,null,{"$f":"IF('Arkusz pomocniczy'!AH35<='Arkusz pomocniczy'!AI$54,'Arkusz pomocniczy'!AH35,\" \")","v":14}]
[{"$f":"IF('Arkusz pomocniczy'!A36<='Arkusz pomocniczy'!B$54,'Arkusz pomocniczy'!A36,\" \")","v":15},null,null,{"$f":"IF('Arkusz pomocniczy'!D36<='Arkusz pomocniczy'!E$54,'Arkusz pomocniczy'!D36,\" \")","v":15},null,null,{"$f":"IF('Arkusz pomocniczy'!G36<='Arkusz pomocniczy'!H$54,'Arkusz pomocniczy'!G36,\" \")","v":15},null,null,{"$f":"IF('Arkusz pomocniczy'!J36<='Arkusz pomocniczy'!K$54,'Arkusz pomocniczy'!J36,\" \")","v":15},null,null,{"$f":"IF('Arkusz pomocniczy'!M36<='Arkusz pomocniczy'!N$54,'Arkusz pomocniczy'!M36,\" \")","v":15},null,null,{"$f":"IF('Arkusz pomocniczy'!P36<='Arkusz pomocniczy'!Q$54,'Arkusz pomocniczy'!P36,\" \")","v":15},null,null,{"$f":"IF('Arkusz pomocniczy'!S36<='Arkusz pomocniczy'!T$54,'Arkusz pomocniczy'!S36,\" \")","v":15},null,null,{"$f":"IF('Arkusz pomocniczy'!V36<='Arkusz pomocniczy'!W$54,'Arkusz pomocniczy'!V36,\" \")","v":15},null,null,{"$f":"IF('Arkusz pomocniczy'!Y36<='Arkusz pomocniczy'!Z$54,'Arkusz pomocniczy'!Y36,\" \")","v":15},null,null,{"$f":"IF('Arkusz pomocniczy'!AB36<='Arkusz pomocniczy'!AC$54,'Arkusz pomocniczy'!AB36,\" \")","v":15},null,null,{"$f":"IF('Arkusz pomocniczy'!AE36<='Arkusz pomocniczy'!AF$54,'Arkusz pomocniczy'!AE36,\" \")","v":15},null,null,{"$f":"IF('Arkusz pomocniczy'!AH36<='Arkusz pomocniczy'!AI$54,'Arkusz pomocniczy'!AH36,\" \")","v":15}]
[{"$f":"IF('Arkusz pomocniczy'!A37<='Arkusz pomocniczy'!B$54,'Arkusz pomocniczy'!A37,\" \")","v":16},null,null,{"$f":"IF('Arkusz pomocniczy'!D37<='Arkusz pomocniczy'!E$54,'Arkusz pomocniczy'!D37,\" \")","v":16},null,null,{"$f":"IF('Arkusz pomocniczy'!G37<='Arkusz pomocniczy'!H$54,'Arkusz pomocniczy'!G37,\" \")","v":16},null,null,{"$f":"IF('Arkusz pomocniczy'!J37<='Arkusz pomocniczy'!K$54,'Arkusz pomocniczy'!J37,\" \")","v":16},null,null,{"$f":"IF('Arkusz pomocniczy'!M37<='Arkusz pomocniczy'!N$54,'Arkusz pomocniczy'!M37,\" \")","v":16},null,null,{"$f":"IF('Arkusz pomocniczy'!P37<='Arkusz pomocniczy'!Q$54,'Arkusz pomocniczy'!P37,\" \")","v":16},null,null,{"$f":"IF('Arkusz pomocniczy'!S37<='Arkusz pomocniczy'!T$54,'Arkusz pomocniczy'!S37,\" \")","v":16},null,null,{"$f":"IF('Arkusz pomocniczy'!V37<='Arkusz pomocniczy'!W$54,'Arkusz pomocniczy'!V37,\" \")","v":16},null,null,{"$f":"IF('Arkusz pomocniczy'!Y37<='Arkusz pomocniczy'!Z$54,'Arkusz pomocniczy'!Y37,\" \")","v":16},null,null,{"$f":"IF('Arkusz pomocniczy'!AB37<='Arkusz pomocniczy'!AC$54,'Arkusz pomocniczy'!AB37,\" \")","v":16},null,null,{"$f":"IF('Arkusz pomocniczy'!AE37<='Arkusz pomocniczy'!AF$54,'Arkusz pomocniczy'!AE37,\" \")","v":16},null,null,{"$f":"IF('Arkusz pomocniczy'!AH37<='Arkusz pomocniczy'!AI$54,'Arkusz pomocniczy'!AH37,\" \")","v":16}]
[{"$f":"IF('Arkusz pomocniczy'!A38<='Arkusz pomocniczy'!B$54,'Arkusz pomocniczy'!A38,\" \")","v":17},null,null,{"$f":"IF('Arkusz pomocniczy'!D38<='Arkusz pomocniczy'!E$54,'Arkusz pomocniczy'!D38,\" \")","v":17},null,null,{"$f":"IF('Arkusz pomocniczy'!G38<='Arkusz pomocniczy'!H$54,'Arkusz pomocniczy'!G38,\" \")","v":17},null,null,{"$f":"IF('Arkusz pomocniczy'!J38<='Arkusz pomocniczy'!K$54,'Arkusz pomocniczy'!J38,\" \")","v":17},null,null,{"$f":"IF('Arkusz pomocniczy'!M38<='Arkusz pomocniczy'!N$54,'Arkusz pomocniczy'!M38,\" \")","v":17},null,null,{"$f":"IF('Arkusz pomocniczy'!P38<='Arkusz pomocniczy'!Q$54,'Arkusz pomocniczy'!P38,\" \")","v":17},null,null,{"$f":"IF('Arkusz pomocniczy'!S38<='Arkusz pomocniczy'!T$54,'Arkusz pomocniczy'!S38,\" \")","v":17},null,null,{"$f":"IF('Arkusz pomocniczy'!V38<='Arkusz pomocniczy'!W$54,'Arkusz pomocniczy'!V38,\" \")","v":17},null,null,{"$f":"IF('Arkusz pomocniczy'!Y38<='Arkusz pomocniczy'!Z$54,'Arkusz pomocniczy'!Y38,\" \")","v":17},null,null,{"$f":"IF('Arkusz pomocniczy'!AB38<='Arkusz pomocniczy'!AC$54,'Arkusz pomocniczy'!AB38,\" \")","v":17},null,null,{"$f":"IF('Arkusz pomocniczy'!AE38<='Arkusz pomocniczy'!AF$54,'Arkusz pomocniczy'!AE38,\" \")","v":17},null,null,{"$f":"IF('Arkusz pomocniczy'!AH38<='Arkusz pomocniczy'!AI$54,'Arkusz pomocniczy'!AH38,\" \")","v":17}]
[{"$f":"IF('Arkusz pomocniczy'!A39<='Arkusz pomocniczy'!B$54,'Arkusz pomocniczy'!A39,\" \")","v":18},null,null,{"$f":"IF('Arkusz pomocniczy'!D39<='Arkusz pomocniczy'!E$54,'Arkusz pomocniczy'!D39,\" \")","v":18},null,null,{"$f":"IF('Arkusz pomocniczy'!G39<='Arkusz pomocniczy'!H$54,'Arkusz pomocniczy'!G39,\" \")","v":18},null,null,{"$f":"IF('Arkusz pomocniczy'!J39<='Arkusz pomocniczy'!K$54,'Arkusz pomocniczy'!J39,\" \")","v":18},null,null,{"$f":"IF('Arkusz pomocniczy'!M39<='Arkusz pomocniczy'!N$54,'Arkusz pomocniczy'!M39,\" \")","v":18},null,null,{"$f":"IF('Arkusz pomocniczy'!P39<='Arkusz pomocniczy'!Q$54,'Arkusz pomocniczy'!P39,\" \")","v":18},null,null,{"$f":"IF('Arkusz pomocniczy'!S39<='Arkusz pomocniczy'!T$54,'Arkusz pomocniczy'!S39,\" \")","v":18},null,null,{"$f":"IF('Arkusz pomocniczy'!V39<='Arkusz pomocniczy'!W$54,'Arkusz pomocniczy'!V39,\" \")","v":18},null,null,{"$f":"IF('Arkusz pomocniczy'!Y39<='Arkusz pomocniczy'!Z$54,'Arkusz pomocniczy'!Y39,\" \")","v":18},null,null,{"$f":"IF('Arkusz pomocniczy'!AB39<='Arkusz pomocniczy'!AC$54,'Arkusz pomocniczy'!AB39,\" \")","v":18},null,null,{"$f":"IF('Arkusz pomocniczy'!AE39<='Arkusz pomocniczy'!AF$54,'Arkusz pomocniczy'!AE39,\" \")","v":18},null,null,{"$f":"IF('Arkusz pomocniczy'!AH39<='Arkusz pomocniczy'!AI$54,'Arkusz pomocniczy'!AH39,\" \")","v":18}]
[{"$f":"IF('Arkusz pomocniczy'!A40<='Arkusz pomocniczy'!B$54,'Arkusz pomocniczy'!A40,\" \")","v":19},null,null,{"$f":"IF('Arkusz pomocniczy'!D40<='Arkusz pomocniczy'!E$54,'Arkusz pomocniczy'!D40,\" \")","v":19},null,null,{"$f":"IF('Arkusz pomocniczy'!G40<='Arkusz pomocniczy'!H$54,'Arkusz pomocniczy'!G40,\" \")","v":19},null,null,{"$f":"IF('Arkusz pomocniczy'!J40<='Arkusz pomocniczy'!K$54,'Arkusz pomocniczy'!J40,\" \")","v":19},null,null,{"$f":"IF('Arkusz pomocniczy'!M40<='Arkusz pomocniczy'!N$54,'Arkusz pomocniczy'!M40,\" \")","v":19},null,null,{"$f":"IF('Arkusz pomocniczy'!P40<='Arkusz pomocniczy'!Q$54,'Arkusz pomocniczy'!P40,\" \")","v":19},null,null,{"$f":"IF('Arkusz pomocniczy'!S40<='Arkusz pomocniczy'!T$54,'Arkusz pomocniczy'!S40,\" \")","v":19},null,null,{"$f":"IF('Arkusz pomocniczy'!V40<='Arkusz pomocniczy'!W$54,'Arkusz pomocniczy'!V40,\" \")","v":19},null,null,{"$f":"IF('Arkusz pomocniczy'!Y40<='Arkusz pomocniczy'!Z$54,'Arkusz pomocniczy'!Y40,\" \")","v":19},null,null,{"$f":"IF('Arkusz pomocniczy'!AB40<='Arkusz pomocniczy'!AC$54,'Arkusz pomocniczy'!AB40,\" \")","v":19},null,null,{"$f":"IF('Arkusz pomocniczy'!AE40<='Arkusz pomocniczy'!AF$54,'Arkusz pomocniczy'!AE40,\" \")","v":19},null,null,{"$f":"IF('Arkusz pomocniczy'!AH40<='Arkusz pomocniczy'!AI$54,'Arkusz pomocniczy'!AH40,\" \")","v":19}]
[{"$f":"IF('Arkusz pomocniczy'!A41<='Arkusz pomocniczy'!B$54,'Arkusz pomocniczy'!A41,\" \")","v":20},null,null,{"$f":"IF('Arkusz pomocniczy'!D41<='Arkusz pomocniczy'!E$54,'Arkusz pomocniczy'!D41,\" \")","v":20},null,null,{"$f":"IF('Arkusz pomocniczy'!G41<='Arkusz pomocniczy'!H$54,'Arkusz pomocniczy'!G41,\" \")","v":20},null,null,{"$f":"IF('Arkusz pomocniczy'!J41<='Arkusz pomocniczy'!K$54,'Arkusz pomocniczy'!J41,\" \")","v":20},null,null,{"$f":"IF('Arkusz pomocniczy'!M41<='Arkusz pomocniczy'!N$54,'Arkusz pomocniczy'!M41,\" \")","v":20},null,null,{"$f":"IF('Arkusz pomocniczy'!P41<='Arkusz pomocniczy'!Q$54,'Arkusz pomocniczy'!P41,\" \")","v":20},null,null,{"$f":"IF('Arkusz pomocniczy'!S41<='Arkusz pomocniczy'!T$54,'Arkusz pomocniczy'!S41,\" \")","v":20},null,null,{"$f":"IF('Arkusz pomocniczy'!V41<='Arkusz pomocniczy'!W$54,'Arkusz pomocniczy'!V41,\" \")","v":20},null,null,{"$f":"IF('Arkusz pomocniczy'!Y41<='Arkusz pomocniczy'!Z$54,'Arkusz pomocniczy'!Y41,\" \")","v":20},null,null,{"$f":"IF('Arkusz pomocniczy'!AB41<='Arkusz pomocniczy'!AC$54,'Arkusz pomocniczy'!AB41,\" \")","v":20},null,null,{"$f":"IF('Arkusz pomocniczy'!AE41<='Arkusz pomocniczy'!AF$54,'Arkusz pomocniczy'!AE41,\" \")","v":20},null,null,{"$f":"IF('Arkusz pomocniczy'!AH41<='Arkusz pomocniczy'!AI$54,'Arkusz pomocniczy'!AH41,\" \")","v":20}]
[{"$f":"IF('Arkusz pomocniczy'!A42<='Arkusz pomocniczy'!B$54,'Arkusz pomocniczy'!A42,\" \")","v":21},null,null,{"$f":"IF('Arkusz pomocniczy'!D42<='Arkusz pomocniczy'!E$54,'Arkusz pomocniczy'!D42,\" \")","v":21},null,null,{"$f":"IF('Arkusz pomocniczy'!G42<='Arkusz pomocniczy'!H$54,'Arkusz pomocniczy'!G42,\" \")","v":21},null,null,{"$f":"IF('Arkusz pomocniczy'!J42<='Arkusz pomocniczy'!K$54,'Arkusz pomocniczy'!J42,\" \")","v":21},null,null,{"$f":"IF('Arkusz pomocniczy'!M42<='Arkusz pomocniczy'!N$54,'Arkusz pomocniczy'!M42,\" \")","v":21},null,null,{"$f":"IF('Arkusz pomocniczy'!P42<='Arkusz pomocniczy'!Q$54,'Arkusz pomocniczy'!P42,\" \")","v":21},null,null,{"$f":"IF('Arkusz pomocniczy'!S42<='Arkusz pomocniczy'!T$54,'Arkusz pomocniczy'!S42,\" \")","v":21},null,null,{"$f":"IF('Arkusz pomocniczy'!V42<='Arkusz pomocniczy'!W$54,'Arkusz pomocniczy'!V42,\" \")","v":21},null,null,{"$f":"IF('Arkusz pomocniczy'!Y42<='Arkusz pomocniczy'!Z$54,'Arkusz pomocniczy'!Y42,\" \")","v":21},null,null,{"$f":"IF('Arkusz pomocniczy'!AB42<='Arkusz pomocniczy'!AC$54,'Arkusz pomocniczy'!AB42,\" \")","v":21},null,null,{"$f":"IF('Arkusz pomocniczy'!AE42<='Arkusz pomocniczy'!AF$54,'Arkusz pomocniczy'!AE42,\" \")","v":21},null,null,{"$f":"IF('Arkusz pomocniczy'!AH42<='Arkusz pomocniczy'!AI$54,'Arkusz pomocniczy'!AH42,\" \")","v":21}]
[{"$f":"IF('Arkusz pomocniczy'!A43<='Arkusz pomocniczy'!B$54,'Arkusz pomocniczy'!A43,\" \")","v":22},null,null,{"$f":"IF('Arkusz pomocniczy'!D43<='Arkusz pomocniczy'!E$54,'Arkusz pomocniczy'!D43,\" \")","v":22},null,null,{"$f":"IF('Arkusz pomocniczy'!G43<='Arkusz pomocniczy'!H$54,'Arkusz pomocniczy'!G43,\" \")","v":22},null,null,{"$f":"IF('Arkusz pomocniczy'!J43<='Arkusz pomocniczy'!K$54,'Arkusz pomocniczy'!J43,\" \")","v":22},null,null,{"$f":"IF('Arkusz pomocniczy'!M43<='Arkusz pomocniczy'!N$54,'Arkusz pomocniczy'!M43,\" \")","v":22},null,null,{"$f":"IF('Arkusz pomocniczy'!P43<='Arkusz pomocniczy'!Q$54,'Arkusz pomocniczy'!P43,\" \")","v":22},null,null,{"$f":"IF('Arkusz pomocniczy'!S43<='Arkusz pomocniczy'!T$54,'Arkusz pomocniczy'!S43,\" \")","v":22},null,null,{"$f":"IF('Arkusz pomocniczy'!V43<='Arkusz pomocniczy'!W$54,'Arkusz pomocniczy'!V43,\" \")","v":22},null,null,{"$f":"IF('Arkusz pomocniczy'!Y43<='Arkusz pomocniczy'!Z$54,'Arkusz pomocniczy'!Y43,\" \")","v":22},null,null,{"$f":"IF('Arkusz pomocniczy'!AB43<='Arkusz pomocniczy'!AC$54,'Arkusz pomocniczy'!AB43,\" \")","v":22},null,null,{"$f":"IF('Arkusz pomocniczy'!AE43<='Arkusz pomocniczy'!AF$54,'Arkusz pomocniczy'!AE43,\" \")","v":22},null,null,{"$f":"IF('Arkusz pomocniczy'!AH43<='Arkusz pomocniczy'!AI$54,'Arkusz pomocniczy'!AH43,\" \")","v":22}]
[{"$f":"IF('Arkusz pomocniczy'!A44<='Arkusz pomocniczy'!B$54,'Arkusz pomocniczy'!A44,\" \")","v":23},null,null,{"$f":"IF('Arkusz pomocniczy'!D44<='Arkusz pomocniczy'!E$54,'Arkusz pomocniczy'!D44,\" \")","v":23},null,null,{"$f":"IF('Arkusz pomocniczy'!G44<='Arkusz pomocniczy'!H$54,'Arkusz pomocniczy'!G44,\" \")","v":23},null,null,{"$f":"IF('Arkusz pomocniczy'!J44<='Arkusz pomocniczy'!K$54,'Arkusz pomocniczy'!J44,\" \")","v":23},null,null,{"$f":"IF('Arkusz pomocniczy'!M44<='Arkusz pomocniczy'!N$54,'Arkusz pomocniczy'!M44,\" \")","v":23},null,null,{"$f":"IF('Arkusz pomocniczy'!P44<='Arkusz pomocniczy'!Q$54,'Arkusz pomocniczy'!P44,\" \")","v":23},null,null,{"$f":"IF('Arkusz pomocniczy'!S44<='Arkusz pomocniczy'!T$54,'Arkusz pomocniczy'!S44,\" \")","v":23},null,null,{"$f":"IF('Arkusz pomocniczy'!V44<='Arkusz pomocniczy'!W$54,'Arkusz pomocniczy'!V44,\" \")","v":23},null,null,{"$f":"IF('Arkusz pomocniczy'!Y44<='Arkusz pomocniczy'!Z$54,'Arkusz pomocniczy'!Y44,\" \")","v":23},null,null,{"$f":"IF('Arkusz pomocniczy'!AB44<='Arkusz pomocniczy'!AC$54,'Arkusz pomocniczy'!AB44,\" \")","v":23},null,null,{"$f":"IF('Arkusz pomocniczy'!AE44<='Arkusz pomocniczy'!AF$54,'Arkusz pomocniczy'!AE44,\" \")","v":23},null,null,{"$f":"IF('Arkusz pomocniczy'!AH44<='Arkusz pomocniczy'!AI$54,'Arkusz pomocniczy'!AH44,\" \")","v":23}]
[{"$f":"IF('Arkusz pomocniczy'!A45<='Arkusz pomocniczy'!B$54,'Arkusz pomocniczy'!A45,\" \")","v":24},null,null,{"$f":"IF('Arkusz pomocniczy'!D45<='Arkusz pomocniczy'!E$54,'Arkusz pomocniczy'!D45,\" \")","v":24},null,null,{"$f":"IF('Arkusz pomocniczy'!G45<='Arkusz pomocniczy'!H$54,'Arkusz pomocniczy'!G45,\" \")","v":24},null,null,{"$f":"IF('Arkusz pomocniczy'!J45<='Arkusz pomocniczy'!K$54,'Arkusz pomocniczy'!J45,\" \")","v":24},null,null,{"$f":"IF('Arkusz pomocniczy'!M45<='Arkusz pomocniczy'!N$54,'Arkusz pomocniczy'!M45,\" \")","v":24},null,null,{"$f":"IF('Arkusz pomocniczy'!P45<='Arkusz pomocniczy'!Q$54,'Arkusz pomocniczy'!P45,\" \")","v":24},null,null,{"$f":"IF('Arkusz pomocniczy'!S45<='Arkusz pomocniczy'!T$54,'Arkusz pomocniczy'!S45,\" \")","v":24},null,null,{"$f":"IF('Arkusz pomocniczy'!V45<='Arkusz pomocniczy'!W$54,'Arkusz pomocniczy'!V45,\" \")","v":24},null,null,{"$f":"IF('Arkusz pomocniczy'!Y45<='Arkusz pomocniczy'!Z$54,'Arkusz pomocniczy'!Y45,\" \")","v":24},null,null,{"$f":"IF('Arkusz pomocniczy'!AB45<='Arkusz pomocniczy'!AC$54,'Arkusz pomocniczy'!AB45,\" \")","v":24},null,null,{"$f":"IF('Arkusz pomocniczy'!AE45<='Arkusz pomocniczy'!AF$54,'Arkusz pomocniczy'!AE45,\" \")","v":24},null,null,{"$f":"IF('Arkusz pomocniczy'!AH45<='Arkusz pomocniczy'!AI$54,'Arkusz pomocniczy'!AH45,\" \")","v":24}]
[{"$f":"IF('Arkusz pomocniczy'!A46<='Arkusz pomocniczy'!B$54,'Arkusz pomocniczy'!A46,\" \")","v":25},null,null,{"$f":"IF('Arkusz pomocniczy'!D46<='Arkusz pomocniczy'!E$54,'Arkusz pomocniczy'!D46,\" \")","v":25},null,null,{"$f":"IF('Arkusz pomocniczy'!G46<='Arkusz pomocniczy'!H$54,'Arkusz pomocniczy'!G46,\" \")","v":25},null,null,{"$f":"IF('Arkusz pomocniczy'!J46<='Arkusz pomocniczy'!K$54,'Arkusz pomocniczy'!J46,\" \")","v":25},null,null,{"$f":"IF('Arkusz pomocniczy'!M46<='Arkusz pomocniczy'!N$54,'Arkusz pomocniczy'!M46,\" \")","v":25},null,null,{"$f":"IF('Arkusz pomocniczy'!P46<='Arkusz pomocniczy'!Q$54,'Arkusz pomocniczy'!P46,\" \")","v":25},null,null,{"$f":"IF('Arkusz pomocniczy'!S46<='Arkusz pomocniczy'!T$54,'Arkusz pomocniczy'!S46,\" \")","v":25},null,null,{"$f":"IF('Arkusz pomocniczy'!V46<='Arkusz pomocniczy'!W$54,'Arkusz pomocniczy'!V46,\" \")","v":25},null,null,{"$f":"IF('Arkusz pomocniczy'!Y46<='Arkusz pomocniczy'!Z$54,'Arkusz pomocniczy'!Y46,\" \")","v":25},null,null,{"$f":"IF('Arkusz pomocniczy'!AB46<='Arkusz pomocniczy'!AC$54,'Arkusz pomocniczy'!AB46,\" \")","v":25},null,null,{"$f":"IF('Arkusz pomocniczy'!AE46<='Arkusz pomocniczy'!AF$54,'Arkusz pomocniczy'!AE46,\" \")","v":25},null,null,{"$f":"IF('Arkusz pomocniczy'!AH46<='Arkusz pomocniczy'!AI$54,'Arkusz pomocniczy'!AH46,\" \")","v":25}]
[{"$f":"IF('Arkusz pomocniczy'!A47<='Arkusz pomocniczy'!B$54,'Arkusz pomocniczy'!A47,\" \")","v":26},null,null,{"$f":"IF('Arkusz pomocniczy'!D47<='Arkusz pomocniczy'!E$54,'Arkusz pomocniczy'!D47,\" \")","v":26},null,null,{"$f":"IF('Arkusz pomocniczy'!G47<='Arkusz pomocniczy'!H$54,'Arkusz pomocniczy'!G47,\" \")","v":26},null,null,{"$f":"IF('Arkusz pomocniczy'!J47<='Arkusz pomocniczy'!K$54,'Arkusz pomocniczy'!J47,\" \")","v":26},null,null,{"$f":"IF('Arkusz pomocniczy'!M47<='Arkusz pomocniczy'!N$54,'Arkusz pomocniczy'!M47,\" \")","v":26},null,null,{"$f":"IF('Arkusz pomocniczy'!P47<='Arkusz pomocniczy'!Q$54,'Arkusz pomocniczy'!P47,\" \")","v":26},null,null,{"$f":"IF('Arkusz pomocniczy'!S47<='Arkusz pomocniczy'!T$54,'Arkusz pomocniczy'!S47,\" \")","v":26},null,null,{"$f":"IF('Arkusz pomocniczy'!V47<='Arkusz pomocniczy'!W$54,'Arkusz pomocniczy'!V47,\" \")","v":26},null,null,{"$f":"IF('Arkusz pomocniczy'!Y47<='Arkusz pomocniczy'!Z$54,'Arkusz pomocniczy'!Y47,\" \")","v":26},null,null,{"$f":"IF('Arkusz pomocniczy'!AB47<='Arkusz pomocniczy'!AC$54,'Arkusz pomocniczy'!AB47,\" \")","v":26},null,null,{"$f":"IF('Arkusz pomocniczy'!AE47<='Arkusz pomocniczy'!AF$54,'Arkusz pomocniczy'!AE47,\" \")","v":26},null,null,{"$f":"IF('Arkusz pomocniczy'!AH47<='Arkusz pomocniczy'!AI$54,'Arkusz pomocniczy'!AH47,\" \")","v":26}]
[{"$f":"IF('Arkusz pomocniczy'!A48<='Arkusz pomocniczy'!B$54,'Arkusz pomocniczy'!A48,\" \")","v":27},null,null,{"$f":"IF('Arkusz pomocniczy'!D48<='Arkusz pomocniczy'!E$54,'Arkusz pomocniczy'!D48,\" \")","v":27},null,null,{"$f":"IF('Arkusz pomocniczy'!G48<='Arkusz pomocniczy'!H$54,'Arkusz pomocniczy'!G48,\" \")","v":27},null,null,{"$f":"IF('Arkusz pomocniczy'!J48<='Arkusz pomocniczy'!K$54,'Arkusz pomocniczy'!J48,\" \")","v":27},null,null,{"$f":"IF('Arkusz pomocniczy'!M48<='Arkusz pomocniczy'!N$54,'Arkusz pomocniczy'!M48,\" \")","v":27},null,null,{"$f":"IF('Arkusz pomocniczy'!P48<='Arkusz pomocniczy'!Q$54,'Arkusz pomocniczy'!P48,\" \")","v":27},null,null,{"$f":"IF('Arkusz pomocniczy'!S48<='Arkusz pomocniczy'!T$54,'Arkusz pomocniczy'!S48,\" \")","v":27},null,null,{"$f":"IF('Arkusz pomocniczy'!V48<='Arkusz pomocniczy'!W$54,'Arkusz pomocniczy'!V48,\" \")","v":27},null,null,{"$f":"IF('Arkusz pomocniczy'!Y48<='Arkusz pomocniczy'!Z$54,'Arkusz pomocniczy'!Y48,\" \")","v":27},null,null,{"$f":"IF('Arkusz pomocniczy'!AB48<='Arkusz pomocniczy'!AC$54,'Arkusz pomocniczy'!AB48,\" \")","v":27},null,null,{"$f":"IF('Arkusz pomocniczy'!AE48<='Arkusz pomocniczy'!AF$54,'Arkusz pomocniczy'!AE48,\" \")","v":27},null,null,{"$f":"IF('Arkusz pomocniczy'!AH48<='Arkusz pomocniczy'!AI$54,'Arkusz pomocniczy'!AH48,\" \")","v":27}]
[{"$f":"IF('Arkusz pomocniczy'!A49<='Arkusz pomocniczy'!B$54,'Arkusz pomocniczy'!A49,\" \")","v":28},null,null,{"$f":"IF('Arkusz pomocniczy'!D49<='Arkusz pomocniczy'!E$54,'Arkusz pomocniczy'!D49,\" \")","v":28},null,null,{"$f":"IF('Arkusz pomocniczy'!G49<='Arkusz pomocniczy'!H$54,'Arkusz pomocniczy'!G49,\" \")","v":28},null,null,{"$f":"IF('Arkusz pomocniczy'!J49<='Arkusz pomocniczy'!K$54,'Arkusz pomocniczy'!J49,\" \")","v":28},null,null,{"$f":"IF('Arkusz pomocniczy'!M49<='Arkusz pomocniczy'!N$54,'Arkusz pomocniczy'!M49,\" \")","v":28},null,null,{"$f":"IF('Arkusz pomocniczy'!P49<='Arkusz pomocniczy'!Q$54,'Arkusz pomocniczy'!P49,\" \")","v":28},null,null,{"$f":"IF('Arkusz pomocniczy'!S49<='Arkusz pomocniczy'!T$54,'Arkusz pomocniczy'!S49,\" \")","v":28},null,null,{"$f":"IF('Arkusz pomocniczy'!V49<='Arkusz pomocniczy'!W$54,'Arkusz pomocniczy'!V49,\" \")","v":28},null,null,{"$f":"IF('Arkusz pomocniczy'!Y49<='Arkusz pomocniczy'!Z$54,'Arkusz pomocniczy'!Y49,\" \")","v":28},null,null,{"$f":"IF('Arkusz pomocniczy'!AB49<='Arkusz pomocniczy'!AC$54,'Arkusz pomocniczy'!AB49,\" \")","v":28},null,null,{"$f":"IF('Arkusz pomocniczy'!AE49<='Arkusz pomocniczy'!AF$54,'Arkusz pomocniczy'!AE49,\" \")","v":28},null,null,{"$f":"IF('Arkusz pomocniczy'!AH49<='Arkusz pomocniczy'!AI$54,'Arkusz pomocniczy'!AH49,\" \")","v":28}]
[{"$f":"IF('Arkusz pomocniczy'!A50<='Arkusz pomocniczy'!B$54,'Arkusz pomocniczy'!A50,\" \")","v":29},null,null,{"$f":"IF('Arkusz pomocniczy'!D50<='Arkusz pomocniczy'!E$54,'Arkusz pomocniczy'!D50,\" \")","v":" "},null,null,{"$f":"IF('Arkusz pomocniczy'!G50<='Arkusz pomocniczy'!H$54,'Arkusz pomocniczy'!G50,\" \")","v":29},null,null,{"$f":"IF('Arkusz pomocniczy'!J50<='Arkusz pomocniczy'!K$54,'Arkusz pomocniczy'!J50,\" \")","v":29},null,null,{"$f":"IF('Arkusz pomocniczy'!M50<='Arkusz pomocniczy'!N$54,'Arkusz pomocniczy'!M50,\" \")","v":29},null,null,{"$f":"IF('Arkusz pomocniczy'!P50<='Arkusz pomocniczy'!Q$54,'Arkusz pomocniczy'!P50,\" \")","v":29},null,null,{"$f":"IF('Arkusz pomocniczy'!S50<='Arkusz pomocniczy'!T$54,'Arkusz pomocniczy'!S50,\" \")","v":29},null,null,{"$f":"IF('Arkusz pomocniczy'!V50<='Arkusz pomocniczy'!W$54,'Arkusz pomocniczy'!V50,\" \")","v":29},null,null,{"$f":"IF('Arkusz pomocniczy'!Y50<='Arkusz pomocniczy'!Z$54,'Arkusz pomocniczy'!Y50,\" \")","v":29},null,null,{"$f":"IF('Arkusz pomocniczy'!AB50<='Arkusz pomocniczy'!AC$54,'Arkusz pomocniczy'!AB50,\" \")","v":29},null,null,{"$f":"IF('Arkusz pomocniczy'!AE50<='Arkusz pomocniczy'!AF$54,'Arkusz pomocniczy'!AE50,\" \")","v":29},null,null,{"$f":"IF('Arkusz pomocniczy'!AH50<='Arkusz pomocniczy'!AI$54,'Arkusz pomocniczy'!AH50,\" \")","v":29}]
[{"$f":"IF('Arkusz pomocniczy'!A51<='Arkusz pomocniczy'!B$54,'Arkusz pomocniczy'!A51,\" \")","v":30},null,null,{"$f":"IF('Arkusz pomocniczy'!D51<='Arkusz pomocniczy'!E$54,'Arkusz pomocniczy'!D51,\" \")","v":" "},null,null,{"$f":"IF('Arkusz pomocniczy'!G51<='Arkusz pomocniczy'!H$54,'Arkusz pomocniczy'!G51,\" \")","v":30},null,null,{"$f":"IF('Arkusz pomocniczy'!J51<='Arkusz pomocniczy'!K$54,'Arkusz pomocniczy'!J51,\" \")","v":30},null,null,{"$f":"IF('Arkusz pomocniczy'!M51<='Arkusz pomocniczy'!N$54,'Arkusz pomocniczy'!M51,\" \")","v":30},null,null,{"$f":"IF('Arkusz pomocniczy'!P51<='Arkusz pomocniczy'!Q$54,'Arkusz pomocniczy'!P51,\" \")","v":30},null,null,{"$f":"IF('Arkusz pomocniczy'!S51<='Arkusz pomocniczy'!T$54,'Arkusz pomocniczy'!S51,\" \")","v":30},null,null,{"$f":"IF('Arkusz pomocniczy'!V51<='Arkusz pomocniczy'!W$54,'Arkusz pomocniczy'!V51,\" \")","v":30},null,null,{"$f":"IF('Arkusz pomocniczy'!Y51<='Arkusz pomocniczy'!Z$54,'Arkusz pomocniczy'!Y51,\" \")","v":30},null,null,{"$f":"IF('Arkusz pomocniczy'!AB51<='Arkusz pomocniczy'!AC$54,'Arkusz pomocniczy'!AB51,\" \")","v":30},null,null,{"$f":"IF('Arkusz pomocniczy'!AE51<='Arkusz pomocniczy'!AF$54,'Arkusz pomocniczy'!AE51,\" \")","v":30},null,null,{"$f":"IF('Arkusz pomocniczy'!AH51<='Arkusz pomocniczy'!AI$54,'Arkusz pomocniczy'!AH51,\" \")","v":30}]
[{"$f":"IF('Arkusz pomocniczy'!A52<='Arkusz pomocniczy'!B$54,'Arkusz pomocniczy'!A52,\" \")","v":31},null,null,{"$f":"IF('Arkusz pomocniczy'!D52<='Arkusz pomocniczy'!E$54,'Arkusz pomocniczy'!D52,\" \")","v":" "},null,null,{"$f":"IF('Arkusz pomocniczy'!G52<='Arkusz pomocniczy'!H$54,'Arkusz pomocniczy'!G52,\" \")","v":31},null,null,{"$f":"IF('Arkusz pomocniczy'!J52<='Arkusz pomocniczy'!K$54,'Arkusz pomocniczy'!J52,\" \")","v":31},null,null,{"$f":"IF('Arkusz pomocniczy'!M52<='Arkusz pomocniczy'!N$54,'Arkusz pomocniczy'!M52,\" \")","v":" "},null,null,{"$f":"IF('Arkusz pomocniczy'!P52<='Arkusz pomocniczy'!Q$54,'Arkusz pomocniczy'!P52,\" \")","v":31},null,null,{"$f":"IF('Arkusz pomocniczy'!S52<='Arkusz pomocniczy'!T$54,'Arkusz pomocniczy'!S52,\" \")","v":" "},null,null,{"$f":"IF('Arkusz pomocniczy'!V52<='Arkusz pomocniczy'!W$54,'Arkusz pomocniczy'!V52,\" \")","v":31},null,null,{"$f":"IF('Arkusz pomocniczy'!Y52<='Arkusz pomocniczy'!Z$54,'Arkusz pomocniczy'!Y52,\" \")","v":31},null,null,{"$f":"IF('Arkusz pomocniczy'!AB52<='Arkusz pomocniczy'!AC$54,'Arkusz pomocniczy'!AB52,\" \")","v":" "},null,null,{"$f":"IF('Arkusz pomocniczy'!AE52<='Arkusz pomocniczy'!AF$54,'Arkusz pomocniczy'!AE52,\" \")","v":31},null,null,{"$f":"IF('Arkusz pomocniczy'!AH52<='Arkusz pomocniczy'!AI$54,'Arkusz pomocniczy'!AH52,\" \")","v":" "}]
["Średni poziom zatrudnienia w miesiącu",{"$f":"SUM(B27:B57)/(0.0000000001+SUBTOTAL(3,B27:B57))","v":0.99999999989999999},null,"Średni poziom zatrudnienia w miesiącu",{"$f":"SUM(E27:E57)/(0.0000000001+SUBTOTAL(3,E27:E57))","v":0},null,"Średni poziom zatrudn. w miesiącu",{"$f":"SUM(H27:H57)/(0.0000000001+SUBTOTAL(3,H27:H57))","v":0},null,"Średni poziom zatrudn. w miesiącu",{"$f":"SUM(K27:K57)/(0.0000000001+SUBTOTAL(3,K27:K57))","v":0},null,"Średni poziom zatrudn. w miesiącu",{"$f":"SUM(N27:N57)/(0.0000000001+SUBTOTAL(3,N27:N57))","v":0},null,"Średni poziom zatrudn. w miesiącu",{"$f":"SUM(Q27:Q57)/(0.0000000001+SUBTOTAL(3,Q27:Q57))","v":0},null,"Średni poziom zatrudn. w miesiącu",{"$f":"SUM(T27:T57)/(0.0000000001+SUBTOTAL(3,T27:T57))","v":0},null,"Średni poziom zatrudn. w miesiącu",{"$f":"SUM(W27:W57)/(0.0000000001+SUBTOTAL(3,W27:W57))","v":0},null,"Średni poziom zatrudn. w miesiącu",{"$f":"SUM(Z27:Z57)/(0.0000000001+SUBTOTAL(3,Z27:Z57))","v":0},null,"Średni poziom zatrudn. w miesiącu",{"$f":"SUM(AC27:AC57)/(0.0000000001+SUBTOTAL(3,AC27:AC57))","v":0},null,"Średni poziom zatrudn. w miesiącu",{"$f":"SUM(AF27:AF57)/(0.0000000001+SUBTOTAL(3,AF27:AF57))","v":0},null,"Średni poziom zatrudn. w miesiącu",{"$f":"SUM(AI27:AI57)/(0.0000000001+SUBTOTAL(3,AI27:AI57))","v":0}]

{"sheet":"Arkusz2","index":1,"n_rows":0,"n_cols":0,"rows_kept":0,"cut":false,"hidden":true,"merged":[]}

{"sheet":"Arkusz pomocniczy","index":2,"n_rows":58,"n_cols":35,"rows_kept":58,"cut":false,"hidden":true,"merged":[[19,33,19,34],[54,0,55,21],[19,15,19,16],[19,18,19,19],[19,21,19,22],[19,24,19,25],[19,27,19,28],[19,30,19,31],[16,5,16,9],[16,10,16,12],[19,0,19,1],[19,3,19,4],[19,6,19,7],[19,9,19,10],[19,12,19,13],[14,5,14,6],[14,7,14,9],[14,10,14,12],[15,5,15,6],[15,7,15,9],[15,10,15,12],[12,5,12,6],[12,7,12,9],[12,10,12,12],[13,5,13,6],[13,7,13,9],[13,10,13,12],[10,5,10,6],[10,7,10,9],[10,10,10,12],[11,5,11,6],[11,7,11,9],[11,10,11,12],[7,10,7,12],[8,5,8,6],[8,7,8,9],[8,10,8,12],[9,5,9,6],[9,7,9,9],[9,10,9,12],[5,0,9,1],[5,2,9,3],[5,5,5,6],[5,7,5,9],[5,10,5,12],[6,5,6,6],[6,7,6,9],[6,10,6,12],[7,5,7,6],[7,7,7,9],[0,0,0,22],[1,0,1,22],[3,0,3,1],[3,5,3,6],[3,7,3,9],[3,10,3,12],[3,14,16,22],[4,5,4,6],[4,7,4,9],[4,10,4,12]]}
["Obliczenie danych dotyczących zatrudnienia na potrzeby określenia momentu bazowego"]
["Należy wypełniać jedynie pola oznaczone kolorem żółtym "]
[]
["Miesiąc złożenia WoPP)",null,null,1,null,"Kolejne miesiące poprzedzające miesiąc złożenia WoPP",null,"Miesiąc",null,null,"Średni poziom zatrudnienia w miesiącu",null,null,null,"Do stanu zatrudnienia nie należy wliczać pracowników przebywających na urlopie: \n• bezpłatnym (kod świadczenia/przerwy 111);\n• macierzyńskim (kod świadczenia/przerwy 311; kod tytułu ubezpieczenia 12 40);\n• bezpłatnym w celu sprawowania opieki nad dzieckiem (np. urlop wychowawczy - kod świadczenia/przerwy 121,122; kod tytułu ubezpieczenia 12 11);\n• bezpłatnym udzielonym pracownikom powołanym do pełnienia określonych funkcji z wyboru \noraz\n• stażystów;\n• osób zatrudnionych w celu przygotowania zawodowego;\n• osób wykonujących pracę na podstawie innej niż umowa o pracę (np. umowy zlecenia lub umowy o dzieło);\n• osób tzw. samozatrudnionych, czyli osób prowadzących działalność gospodarczą oraz osób współpracujących;\n• osób skazanych zatrudnionych na podstawie skierowania do pracy wydanego dyrektora zakładu karnego  (a nie umowy o pracę )."]
[null,null,null,null,null,{"$f":"1","v":1},null,{"$f":"'Arkusz chroniony'!H10:J10","v":"Marzec_2013"},null,null,{"$f":"B53","v":0}]
["Liczba miesięcy        (w przypadku kiedy podmiot działa krócej niż 12 miesięcy należy wpisać liczbę miesięcy prowadzenia dzialalności)",null,12,null,null,{"$f":"1+F5","v":2},null,{"$f":"'Arkusz chroniony'!H11:J11","v":"Luty_2013"},null,null,{"$f":"E53","v":0}]
[null,null,null,null,null,{"$f":"F6+1","v":3},null,{"$f":"'Arkusz chroniony'!H12:J12","v":"Styczeń_2013"},null,null,{"$f":"H53","v":0}]
[null,null,null,null,null,{"$f":"F7+1","v":4},null,{"$f":"'Arkusz chroniony'!H13:J13","v":"Grudzień_2012"},null,null,{"$f":"K53","v":0}]
[null,null,null,null,null,5,null,{"$f":"'Arkusz chroniony'!H14:J14","v":"Listopad_2012"},null,null,{"$f":"N53","v":0}]
[null,null,null,null,null,6,null,{"$f":"'Arkusz chroniony'!H15:J15","v":"Październik_2012"},null,null,{"$f":"Q53","v":0}]
[null,null,null,null,null,7,null,{"$f":"'Arkusz chroniony'!H16:J16","v":"Wrzesień_2012"},null,null,{"$f":"T53","v":0}]
[null,null,null,null,null,8,null,{"$f":"'Arkusz chroniony'!H17:J17","v":"Sierpień_2012"},null,null,{"$f":"W53","v":0}]
[null,null,null,null,null,9,null,{"$f":"'Arkusz chroniony'!H18:J18","v":"Lipiec_2012"},null,null,{"$f":"Z53","v":0}]
[null,null,null,null,null,10,null,{"$f":"'Arkusz chroniony'!H19:J19","v":"Czerwiec_2012"},null,null,{"$f":"AC53","v":0}]
[null,null,null,null,null,11,null,{"$f":"'Arkusz chroniony'!H20:J20","v":"Maj_2012"},null,null,{"$f":"AF53","v":0}]
[null,null,null,null,null,12,null,{"$f":"'Arkusz chroniony'!H21:J21","v":"Kwiecień_2012"},null,null,{"$f":"AI53","v":0}]
[null,null,null,null,null,"Średnia z okresu 12 miesięcy poprzedzajacych miesiąc złożenia wniosku",null,null,null,null,{"$f":"SUM(K5:M16)/C6","v":0}]
[]
[]
[{"$f":"H5","v":"Marzec_2013"},null,null,{"$f":"H6","v":"Luty_2013"},null,null,{"$f":"H7","v":"Styczeń_2013"},null,null,{"$f":"H8","v":"Grudzień_2012"},null,null,{"$f":"H9","v":"Listopad_2012"},null,null,{"$f":"H10","v":"Październik_2012"},null,null,{"$f":"H11","v":"Wrzesień_2012"},null,null,{"$f":"H12","v":"Sierpień_2012"},null,null,{"$f":"H13","v":"Lipiec_2012"},null,null,{"$f":"H14","v":"Czerwiec_2012"},null,null,{"$f":"H15","v":"Maj_2012"},null,null,{"$f":"H16","v":"Kwiecień_2012"}]
["Dni w miesiącu","Liczba osób pracujących w poszczególnych dniach miesiąca",null,"Dni w miesiącu","Liczba osób pracujących w poszczególnych dniach miesiąca",null,"Dni w miesiącu","Liczba osób pracujących w poszczególnych dniach miesiąca",null,"Dni w miesiącu","Liczba osób pracujących w poszczególnych dniach miesiąca",null,"Dni w miesiącu","Liczba osób pracujących w poszczególnych dniach miesiąca",null,"Dni w miesiącu","Liczba osób pracujących w poszczególnych dniach miesiąca",null,"Dni w miesiącu","Liczba osób pracujących w poszczególnych dniach miesiąca",null,"Dni w miesiącu","Liczba osób pracujących w poszczególnych dniach miesiąca",null,"Dni w miesiącu","Liczba osób pracujących w poszczególnych dniach miesiąca",null,"Dni w miesiącu","Liczba osób pracujących w poszczególnych dniach miesiąca",null,"Dni w miesiącu","Liczba osób pracujących w poszczególnych dniach miesiąca",null,"Dni w miesiącu","Liczba osób pracujących w poszczególnych dniach miesiąca"]
[1,null,null,1,null,null,1,null,null,1,null,null,1,null,null,1,null,null,1,null,null,1,null,null,1,null,null,1,null,null,1,null,null,1]
[2,null,null,2,null,null,2,null,null,2,null,null,2,null,null,2,null,null,2,null,null,2,null,null,2,null,null,2,null,null,2,null,null,2]
[3,null,null,3,null,null,3,null,null,3,null,null,3,null,null,3,null,null,3,null,null,3,null,null,3,null,null,3,null,null,3,null,null,3]
[4,null,null,4,null,null,4,null,null,4,null,null,4,null,null,4,null,null,4,null,null,4,null,null,4,null,null,4,null,null,4,null,null,4]
[5,null,null,5,null,null,5,null,null,5,null,null,5,null,null,5,null,null,5,null,null,5,null,null,5,null,null,5,null,null,5,null,null,5]
[6,null,null,6,null,null,6,null,null,6,null,null,6,null,null,6,null,null,6,null,null,6,null,null,6,null,null,6,null,null,6,null,null,6]
[7,null,null,7,null,null,7,null,null,7,null,null,7,null,null,7,null,null,7,null,null,7,null,null,7,null,null,7,null,null,7,null,null,7]
[8,null,null,8,null,null,8,null,null,8,null,null,8,null,null,8,null,null,8,null,null,8,null,null,8,null,null,8,null,null,8,null,null,8]
[9,null,null,9,null,null,9,null,null,9,null,null,9,null,null,9,null,null,9,null,null,9,null,null,9,null,null,9,null,null,9,null,null,9]
[10,null,null,10,null,null,10,null,null,10,null,null,10,null,null,10,null,null,10,null,null,10,null,null,10,null,null,10,null,null,10,null,null,10]
[11,null,null,11,null,null,11,null,null,11,null,null,11,null,null,11,null,null,11,null,null,11,null,null,11,null,null,11,null,null,11,null,null,11]
[12,null,null,12,null,null,12,null,null,12,null,null,12,null,null,12,null,null,12,null,null,12,null,null,12,null,null,12,null,null,12,null,null,12]
[13,null,null,13,null,null,13,null,null,13,null,null,13,null,null,13,null,null,13,null,null,13,null,null,13,null,null,13,null,null,13,null,null,13]
[14,null,null,14,null,null,14,null,null,14,null,null,14,null,null,14,null,null,14,null,null,14,null,null,14,null,null,14,null,null,14,null,null,14]
[15,null,null,15,null,null,15,null,null,15,null,null,15,null,null,15,null,null,15,null,null,15,null,null,15,null,null,15,null,null,15,null,null,15]
[16,null,null,16,null,null,16,null,null,16,null,null,16,null,null,16,null,null,16,null,null,16,null,null,16,null,null,16,null,null,16,null,null,16]
[17,null,null,17,null,null,17,null,null,17,null,null,17,null,null,17,null,null,17,null,null,17,null,null,17,null,null,17,null,null,17,null,null,17]
[18,null,null,18,null,null,18,null,null,18,null,null,18,null,null,18,null,null,18,null,null,18,null,null,18,null,null,18,null,null,18,null,null,18]
[19,null,null,19,null,null,19,null,null,19,null,null,19,null,null,19,null,null,19,null,null,19,null,null,19,null,null,19,null,null,19,null,null,19]
[20,null,null,20,null,null,20,null,null,20,null,null,20,null,null,20,null,null,20,null,null,20,null,null,20,null,null,20,null,null,20,null,null,20]
[21,null,null,21,null,null,21,null,null,21,null,null,21,null,null,21,null,null,21,null,null,21,null,null,21,null,null,21,null,null,21,null,null,21]
[22,null,null,22,null,null,22,null,null,22,null,null,22,null,null,22,null,null,22,null,null,22,null,null,22,null,null,22,null,null,22,null,null,22]
[23,null,null,23,null,null,23,null,null,23,null,null,23,null,null,23,null,null,23,null,null,23,null,null,23,null,null,23,null,null,23,null,null,23]
[24,null,null,24,null,null,24,null,null,24,null,null,24,null,null,24,null,null,24,null,null,24,null,null,24,null,null,24,null,null,24,null,null,24]
[25,null,null,25,null,null,25,null,null,25,null,null,25,null,null,25,null,null,25,null,null,25,null,null,25,null,null,25,null,null,25,null,null,25]
[26,null,null,26,null,null,26,null,null,26,null,null,26,null,null,26,null,null,26,null,null,26,null,null,26,null,null,26,null,null,26,null,null,26]
[27,null,null,27,null,null,27,null,null,27,null,null,27,null,null,27,null,null,27,null,null,27,null,null,27,null,null,27,null,null,27,null,null,27]
[28,null,null,28,null,null,28,null,null,28,null,null,28,null,null,28,null,null,28,null,null,28,null,null,28,null,null,28,null,null,28,null,null,28]
[29,null,null,29,null,null,29,null,null,29,null,null,29,null,null,29,null,null,29,null,null,29,null,null,29,null,null,29,null,null,29,null,null,29]
[30,null,null,30,null,null,30,null,null,30,null,null,30,null,null,30,null,null,30,null,null,30,null,null,30,null,null,30,null,null,30,null,null,30]
[31,null,null,31,null,null,31,null,null,31,null,null,31,null,null,31,null,null,31,null,null,31,null,null,31,null,null,31,null,null,31,null,null,31]
["Średni poziom zatrudnienia w miesiącu",{"$f":"SUM(B22:B52)/VLOOKUP(A20,'Tabela miesiące'!$B$1:$C$37,2,0)","v":0},null,"Średni poziom zatrudnienia w miesiącu",{"$f":"SUM(E22:E52)/VLOOKUP(D20,'Tabela miesiące'!$B$1:$C$37,2,0)","v":0},null,"Średni poziom zatrudn. w miesiącu",{"$f":"SUM(H22:H52)/VLOOKUP(G20,'Tabela miesiące'!$B$1:$C$37,2,0)","v":0},null,"Średni poziom zatrudn. w miesiącu",{"$f":"SUM(K22:K52)/VLOOKUP(J20,'Tabela miesiące'!$B$1:$C$37,2,0)","v":0},null,"Średni poziom zatrudn. w miesiącu",{"$f":"SUM(N22:N52)/VLOOKUP(M20,'Tabela miesiące'!$B$1:$C$37,2,0)","v":0},null,"Średni poziom zatrudn. w miesiącu",{"$f":"SUM(Q22:Q52)/VLOOKUP(P20,'Tabela miesiące'!$B$1:$C$37,2,0)","v":0},null,"Średni poziom zatrudn. w miesiącu",{"$f":"SUM(T22:T52)/VLOOKUP(S20,'Tabela miesiące'!$B$1:$C$37,2,0)","v":0},null,"Średni poziom zatrudn. w miesiącu",{"$f":"SUM(W22:W52)/VLOOKUP(V20,'Tabela miesiące'!$B$1:$C$37,2,0)","v":0},null,"Średni poziom zatrudn. w miesiącu",{"$f":"SUM(Z22:Z52)/VLOOKUP(Y20,'Tabela miesiące'!$B$1:$C$37,2,0)","v":0},null,"Średni poziom zatrudn. w miesiącu",{"$f":"SUM(AC22:AC52)/VLOOKUP(AB20,'Tabela miesiące'!$B$1:$C$37,2,0)","v":0},null,"Średni poziom zatrudn. w miesiącu",{"$f":"SUM(AF22:AF52)/VLOOKUP(AE20,'Tabela miesiące'!$B$1:$C$37,2,0)","v":0},null,"Średni poziom zatrudn. w miesiącu",{"$f":"SUM(AI22:AI52)/VLOOKUP(AH20,'Tabela miesiące'!$B$1:$C$37,2,0)","v":0}]
[null,{"$f":"VLOOKUP(A20,'Tabela miesiące'!$B$1:$C$37,2,0)","v":31},null,null,{"$f":"VLOOKUP(D20,'Tabela miesiące'!$B$1:$C$37,2,0)","v":28},null,null,{"$f":"VLOOKUP(G20,'Tabela miesiące'!$B$1:$C$37,2,0)","v":31},null,null,{"$f":"VLOOKUP(J20,'Tabela miesiące'!$B$1:$C$37,2,0)","v":31},null,null,{"$f":"VLOOKUP(M20,'Tabela miesiące'!$B$1:$C$37,2,0)","v":30},null,null,{"$f":"VLOOKUP(P20,'Tabela miesiące'!$B$1:$C$37,2,0)","v":31},null,null,{"$f":"VLOOKUP(S20,'Tabela miesiące'!$B$1:$C$37,2,0)","v":30},null,null,{"$f":"VLOOKUP(V20,'Tabela miesiące'!$B$1:$C$37,2,0)","v":31},null,null,{"$f":"VLOOKUP(Y20,'Tabela miesiące'!$B$1:$C$37,2,0)","v":31},null,null,{"$f":"VLOOKUP(AB20,'Tabela miesiące'!$B$1:$C$37,2,0)","v":30},null,null,{"$f":"VLOOKUP(AE20,'Tabela miesiące'!$B$1:$C$37,2,0)","v":31},null,null,{"$f":"VLOOKUP(AH20,'Tabela miesiące'!$B$1:$C$37,2,0)","v":30}]
["Przy wyliczaniu stanu zatrudnienia w poszczególnym miesiącu należy dostosować liczbę dni dospecyfiki danego miesiąca. Analogicznie należy dokonać wyliczenia średniej zatrudnienia w danym miesiącu.  "]
[]
[]
["Dla dni wolnych od pracy należy przyjąć stan z poprzedzającego dnia roboczego, o ile w tym dniu nie została rozwiązana umowa z pracownikiem. "]

{"sheet":"Tabela miesiące","index":3,"n_rows":37,"n_cols":3,"rows_kept":37,"cut":false,"hidden":true,"merged":[]}
["Lp.","Miesiąc","Liczba dni"]
[1,"Grudzień_2013",31]
[2,"Listopad_2013",30]
[3,"Październik_2013",31]
[4,"Wrzesień_2013",30]
[5,"Sierpień_2013",31]
[6,"Lipiec_2013",31]
[7,"Czerwiec_2013",30]
[8,"Maj_2013",31]
[9,"Kwiecień_2013",30]
[10,"Marzec_2013",31]
[11,"Luty_2013",28]
[12,"Styczeń_2013",31]
[13,"Grudzień_2012",31]
[14,"Listopad_2012",30]
[15,"Październik_2012",31]
[16,"Wrzesień_2012",30]
[17,"Sierpień_2012",31]
[18,"Lipiec_2012",31]
[19,"Czerwiec_2012",30]
[20,"Maj_2012",31]
[21,"Kwiecień_2012",30]
[22,"Marzec_2012",31]
[23,"Luty_2012",28]
[24,"Styczeń_2012",31]
[25,"Grudzień_2011",31]
[26,"Listopad_2011",30]
[27,"Październik_2011",31]
[28,"Wrzesień_2011",30]
[29,"Sierpień_2011",31]
[30,"Lipiec_2011",31]
[31,"Czerwiec_2011",30]
[32,"Maj_2011",31]
[33,"Kwiecień_2011",30]
[34,"Marzec_2011",31]
[35,"Luty_2011",28]
[36,"Styczeń_2011",31]